bitfinex-derivatives/quotes_ETHF0:USTF0_20251013
["timestamp","ask_amount","ask_price","bid_price","bid_amount"]
[1760366534952,1.8953,4111.8,4111.4,3.2078]
[1760366534953,2.51086968,4111.8,4111.7,0.261]
[1760366535253,2.51086968,4111.8,4110.0,1.09399]
[1760366535254,0.43748,4111.2,4110.8,3.4688]
[1760366535556,0.00221563,4111.2,4110.9,0.261]
[1760366535753,0.00221563,4111.2,4111.0,2.20339]
[1760366536055,0.00221563,4111.2,4111.1,1.7659]
[1760366536648,2.76855,4112.4,4111.1,1.7659]
[1760366536649,2.3312,4112.4,4112.2,0.43736]
[1760366536856,2.3312,4112.4,4112.3,3.4688]
[1760366537652,4.14793204,4112.4,4112.3,3.4688]
[1760366537954,2.33413204,4112.4,4112.3,3.4688]
[1760366538155,4.14793204,4112.4,4112.3,3.2078]
[1760366538352,4.14793204,4112.4,4112.3,3.4688]
[1760366538555,2.33413204,4112.4,4112.3,3.4688]
[1760366538952,4.58528204,4112.4,4112.3,0.261]
[1760366539164,1.8138,4112.1,4112.0,0.261]
[1760366539359,2.33413204,4112.4,4112.0,0.261]
[1760366539556,4.14793204,4112.4,4112.0,0.261]
[1760366539754,2.33413204,4112.4,4112.2,0.43736]
[1760366539957,2.33413204,4112.4,4112.3,0.261]
[1760366540157,4.14793204,4112.4,4112.3,0.261]
[1760366540354,2.33413204,4112.4,4112.3,5.2347]
[1760366540758,2.33413204,4112.4,4112.3,3.4688]
[1760366540958,2.33413204,4112.4,4111.9,0.43739]
[1760366540959,0.43736,4112.3,4111.9,0.43739]
[1760366541259,1.8138,4111.9,4111.8,3.2078]
[1760366541456,1.8138,4111.9,4111.8,3.4688]
[1760366541658,2.2512,4111.9,4111.8,3.4688]
[1760366541860,5.43632859,4111.9,4111.8,0.09145783]
[1760366542058,5.43632859,4111.9,4111.3,3.2078]
[1760366542059,2.25125,4111.4,4111.3,3.2078]
[1760366542259,2.25125,4111.4,4111.3,3.4688]
[1760366542563,2.2513,4110.9,4110.8,0.00291044]
[1760366542754,6.01879449,4110.9,4110.8,0.00291044]
[1760366542953,0.43754,4110.6,4110.5,0.261]
[1760366543153,2.25134,4110.6,4110.5,0.261]
[1760366543565,1.8138,4110.6,4110.1,0.261]
[1760366543857,3.2078,4110.9,4110.1,0.261]
[1760366543858,0.43758,4110.2,4110.1,0.261]
[1760366544158,2.25138,4110.2,4110.1,0.2627681]
[1760366544961,1.8138,4110.2,4110.1,0.2627681]
[1760366545859,1.8138,4110.2,4110.1,0.0017681]
[1760366546263,4.96760598,4110.2,4110.1,0.0017681]
[1760366546656,0.43762,4109.8,4109.7,0.261]
[1760366546962,1.8138,4109.8,4109.7,0.261]
[1760366547663,1.8138,4109.8,4109.7,0.26385255]
[1760366548056,1.8138,4109.8,4109.7,0.00285255]
[1760366548459,4.92153208,4109.8,4109.7,0.00285255]
[1760366548662,1.8138,4108.4,4108.3,3.64558]
[1760366548966,0.43772,4108.9,4108.3,3.4688]
[1760366549358,1.8138,4109.1,4108.3,3.4688]
[1760366549563,1.8138,4108.5,4108.4,0.43777]
[1760366549863,3.93010066,4108.8,4108.3,3.47065838]
[1760366550060,1.8138,4108.4,4108.3,3.47065838]
[1760366550256,1.8138,4108.4,4108.3,0.26285838]
[1760366550456,1.8138,4108.4,4107.8,0.02434393]
[1760366550457,0.43782,4107.9,4107.8,0.02434393]
[1760366550659,2.25162,4107.9,4107.8,0.02434393]
[1760366551365,5.48735971,4107.9,4107.8,0.02434393]
[1760366551555,1.8138,4107.0,4106.6,0.43796]
[1760366551763,1.8138,4107.0,4106.7,0.261]
[1760366551764,5.0216,4107.0,4106.7,0.261]
[1760366551960,5.0216,4107.0,4106.8,0.43794]
[1760366552158,1.8138,4106.9,4106.7,0.261]
[1760366552359,1.8138,4106.8,4106.7,0.261]
[1760366552764,4.99290846,4106.8,4106.2,0.261]
[1760366552970,0.43798,4106.5,4106.2,0.261]
[1760366553170,1.8138,4106.6,4106.4,0.43798]
[1760366553366,3.17910846,4106.8,4106.2,0.261]
[1760366553367,3.17910846,4106.8,4106.2,0.699]
[1760366553562,3.9619,4107.0,4106.2,0.261]
[1760366553563,1.8138,4106.5,4106.2,0.261]
[1760366553770,0.43797,4106.6,4106.2,0.699]
[1760366553963,1.8138,4106.5,4106.2,0.261]
[1760366554173,1.8138,4106.9,4106.7,0.43795]
[1760366554370,4.94051407,4106.9,4106.7,0.43795]
[1760366554672,3.2078,4107.7,4106.9,1.09483]
[1760366554862,3.2078,4108.3,4107.5,3.2078]
[1760366555065,3.8669,4108.8,4108.7,0.43774]
[1760366555066,4.9266,4108.8,4108.7,0.43774]
[1760366555269,4.9266,4108.8,4108.2,1.7659]
[1760366555270,1.8138,4108.7,4108.4,0.261]
[1760366555567,1.8138,4108.5,4108.4,0.261]
[1760366555770,1.8138,4108.5,4107.9,0.261]
[1760366555964,1.8138,4108.5,4107.8,0.261]
[1760366555965,2.25161,4108.1,4107.8,0.261]
[1760366556162,1.8138,4108.0,4107.6,0.261]
[1760366556361,3.2078,4108.2,4107.7,0.43784]
[1760366556569,1.8138,4108.1,4107.6,0.261]
[1760366556766,1.8138,4107.6,4107.4,0.43787]
[1760366556968,1.8138,4107.4,4106.8,3.2078]
[1760366557166,1.8138,4107.1,4106.9,0.261]
[1760366557467,1.8138,4107.0,4106.8,3.64574]
[1760366557667,1.8138,4107.0,4106.3,0.261]
[1760366557668,1.8138,4106.8,4106.3,0.261]
[1760366557875,1.8138,4106.5,4106.4,0.43798]
[1760366558065,0.43798,4106.5,4106.3,0.261]
[1760366558267,1.8138,4106.4,4106.3,0.261]
[1760366558667,4.2229,4107.6,4106.7,0.43794]
[1760366558870,4.2229,4107.6,4106.3,3.4688]
[1760366558871,1.8138,4107.5,4106.3,3.2078]
[1760366559171,1.8138,4107.4,4107.0,0.43792]
[1760366559368,1.8138,4107.4,4107.3,0.43789]
[1760366559569,0.43784,4107.8,4107.3,3.2078]
[1760366559773,1.8138,4108.5,4107.6,1.09465]
[1760366559967,3.2078,4108.6,4107.8,3.64563]
[1760366559968,0.4378,4108.2,4107.8,3.64563]
[1760366560172,1.8138,4108.0,4107.4,0.261]
[1760366560369,3.10152593,4108.1,4107.4,0.261]
[1760366560370,1.848,4108.4,4107.8,3.2078]
[1760366560670,1.848,4108.4,4107.5,1.09466]
[1760366560671,1.8138,4107.8,4107.4,0.43787]
[1760366560871,1.8138,4107.8,4107.7,0.261]
[1760366561073,4.94289279,4107.7,4106.8,3.2078]
[1760366561368,0.43795,4106.8,4106.1,1.7659]
[1760366561569,0.43802,4106.1,4105.9,0.00174873]
[1760366561775,1.8138,4106.0,4105.9,0.00174873]
[1760366561972,4.94085697,4106.0,4105.9,0.00174873]
[1760366562171,0.0019814,4106.1,4105.9,0.00174873]
[1760366562377,0.0019814,4106.1,4106.0,0.43803]
[1760366562672,0.0019814,4106.1,4106.0,5.41173]
[1760366563271,0.0019814,4106.1,4106.0,3.64583]
[1760366563672,0.0019814,4106.1,4106.0,5.41173]
[1760366563872,0.0019814,4106.1,4106.0,3.64583]
[1760366564372,1.8138,4106.0,4105.9,0.00174873]
[1760366564680,4.93577044,4106.0,4105.9,0.00174873]
[1760366564878,1.8138,4105.9,4105.6,0.261]
[1760366565177,1.8138,4105.7,4105.6,0.261]
[1760366565382,5.0216,4105.7,4105.6,0.261]
[1760366565576,8.16321309,4105.7,4105.6,0.261]
[1760366565877,8.60127309,4105.7,4105.6,0.00221582]
[1760366566375,0.43817,4104.7,4103.4,1.86785]
[1760366566579,1.7355,4104.3,4104.2,0.43822]
[1760366566780,1.7355,4104.3,4104.0,0.261]
[1760366566781,4.96334245,4104.6,4104.0,3.4688]
[1760366567080,1.7355,4104.5,4104.4,0.43819]
[1760366567273,1.7355,4104.5,4104.4,0.70136817]
[1760366567483,0.85651505,4107.4,4104.4,0.70136817]
[1760366567484,6.36372064,4105.4,4104.6,1.09545]
[1760366567772,6.36372064,4105.4,4104.4,0.26317817]
[1760366567773,1.8119,4106.0,4105.3,3.2078]
[1760366567980,1.8119,4106.0,4105.6,0.43806]
[1760366568176,5.00678232,4106.0,4105.8,0.43804]
[1760366568374,1.8119,4106.0,4105.9,0.261]
[1760366568778,0.0019814,4106.1,4106.0,0.43803]
[1760366569379,1.8119,4106.0,4105.7,0.43806]
[1760366569576,0.0019814,4106.1,4106.0,1.8096]
[1760366569778,0.0019814,4106.1,4106.0,0.261]
[1760366570179,1.8119,4106.0,4105.9,0.43804]
[1760366570378,0.0019814,4106.1,4106.0,1.8096]
[1760366570887,0.0019814,4106.1,4106.0,5.0174]
[1760366571379,1.8119,4106.0,4105.9,0.43803]
[1760366571578,1.8119,4106.0,4105.5,3.64588]
[1760366571778,1.8119,4105.8,4105.6,0.261]
[1760366571973,0.0019814,4106.1,4105.6,0.261]
[1760366572282,0.0019814,4106.1,4106.0,3.64583]
[1760366572470,1.8138814,4106.1,4106.0,0.261]
[1760366572672,0.0019814,4106.1,4105.9,0.43803]
[1760366572875,0.0019814,4106.1,4106.0,0.261]
[1760366573075,3.19657886,4106.0,4105.4,3.2078]
[1760366573280,1.8119,4106.0,4104.8,3.2078]
[1760366573475,1.8119,4105.7,4104.9,0.261]
[1760366573682,0.43803,4106.0,4105.6,0.43806]
[1760366573978,0.0019814,4106.1,4105.7,0.261]
[1760366574284,3.2078,4107.0,4106.9,0.43792]
[1760366574476,3.2078,4107.0,4106.9,2.50852]
[1760366574881,1.8119,4107.2,4107.0,0.43792]
[1760366575379,0.00314312,4107.2,4107.1,1.8096]
[1760366575581,0.00314312,4107.2,4107.1,0.261]
[1760366575582,1.81504312,4107.2,4107.1,0.261]
[1760366575782,0.00314312,4107.2,4107.1,1.8096]
[1760366576079,3.2078,4109.2,4109.0,0.4377]
[1760366576378,1.8119,4109.9,4109.1,0.261]
[1760366576579,1.8119,4109.9,4109.3,0.43767]
[1760366576784,1.15981,4110.0,4109.4,0.261]
[1760366577086,1.8119,4109.7,4109.5,0.43765]
[1760366577382,1.8119,4109.7,4109.6,3.2078]
[1760366577587,0.00181833,4110.0,4109.9,0.43761]
[1760366577778,0.00181833,4110.0,4109.9,0.69861]
[1760366578181,2.6512,4110.5,4110.4,0.43756]
[1760366578383,2.6512,4110.5,4110.4,0.69856]
[1760366578582,4.4631,4110.5,4110.4,0.69856]
[1760366578782,4.4631,4110.5,4110.4,0.261]
[1760366578984,2.6512,4110.5,4110.4,0.261]
[1760366579186,2.65416938,4110.5,4110.4,2.0706]
[1760366579381,1.8119,4110.4,4109.7,3.2078]
[1760366579583,2.65416938,4110.5,4110.2,0.43757]
[1760366579786,2.65416938,4110.5,4109.7,3.2078]
[1760366579787,1.8119,4110.4,4110.3,0.261]
[1760366580181,1.8119,4110.4,4109.7,3.2078]
[1760366580385,1.8119,4110.3,4109.9,0.43761]
[1760366580588,4.36757,4110.4,4109.9,0.43761]
[1760366580792,1.8119,4110.2,4110.1,0.43759]
[1760366580993,2.67366938,4110.5,4110.4,1.8096]
[1760366581184,2.67366938,4110.5,4110.2,0.43757]
[1760366581390,2.67366938,4110.5,4110.4,0.43756]
[1760366582184,2.67366938,4110.5,4110.4,2.24716]
[1760366582382,2.67366938,4110.5,4110.3,0.261]
[1760366582586,2.67366938,4110.5,4110.2,0.43757]
[1760366582894,1.8119,4110.4,4110.3,0.261]
[1760366583488,0.4376,4110.1,4109.5,3.2078]
[1760366583688,0.4376,4110.1,4109.6,0.261]
[1760366583894,1.8119,4110.0,4109.7,0.43763]
[1760366584203,1.8119,4110.0,4109.8,0.43762]
[1760366584591,4.2958,4110.4,4110.2,0.43757]
[1760366584790,4.2958,4110.4,4110.3,0.261]
[1760366584791,3.5736,4110.4,4110.3,0.261]
[1760366585093,8.5933,4110.4,4110.3,0.261]
[1760366585689,8.5933,4110.4,4109.4,0.00207611]
[1760366585885,1.8119,4109.5,4109.4,0.00207611]
[1760366586594,1.8119,4109.9,4109.4,0.00207611]
[1760366586788,7.5036,4110.4,4109.8,0.43762]
[1760366586988,6.2293,4110.0,4109.9,0.261]
[1760366587190,0.43765,4109.6,4109.4,0.00207611]
[1760366587493,8.15647181,4109.5,4109.4,0.00207611]
[1760366589393,0.43775,4108.6,4108.5,3.2078]
[1760366589595,2.24965,4108.6,4108.5,0.261]
[1760366590495,2.24965,4108.6,4108.5,0.26414328]
[1760366590692,3.2078,4108.7,4108.5,0.70190328]
[1760366590990,5.45744,4108.7,4108.5,0.70190328]
[1760366591192,1.8119,4109.0,4108.9,0.43772]
[1760366591796,3.9798,4110.0,4109.2,1.0942]
[1760366592092,3.9798,4110.0,4109.8,0.43761]
[1760366592093,3.2576,4110.0,4109.8,0.43761]
[1760366592298,3.2576,4110.0,4109.9,0.261]
[1760366593298,3.2576,4110.0,4109.9,2.0706]
[1760366594000,2.76982923,4110.0,4109.9,2.0706]
[1760366594589,3.2078,4111.4,4110.6,1.1642]
[1760366594802,3.2078,4111.4,4109.4,0.3535]
[1760366594803,1.15968,4111.2,4110.3,3.2078]
[1760366594997,3.2078,4110.8,4109.8,3.2078]
[1760366595203,3.2078,4110.8,4110.0,0.4376]
[1760366595204,0.43756,4110.4,4110.0,0.4376]
[1760366595407,3.2078,4110.8,4109.9,0.26]
[1760366595599,0.43762,4109.9,4109.3,3.2078]
[1760366595898,0.43764,4109.6,4109.4,0.26]
[1760366596101,1.09412,4109.6,4108.2,3.2078]
[1760366596399,10.93896,4110.5,4108.2,3.2078]
[1760366596400,3.1926579,4109.5,4109.4,1.57306]
[1760366596703,1.7991,4110.2,4109.4,3.4678]
[1760366596903,6.4004579,4110.4,4109.9,0.4376]
[1760366597101,0.43758,4110.2,4110.0,0.26]
[1760366597404,0.6947,4110.0,4109.7,0.26]
[1760366597603,1.7991,4109.4,4109.0,0.4377]
[1760366597904,1.7991,4109.2,4109.1,0.26]
[1760366598402,3.2078,4109.8,4109.2,1.1354]
[1760366598597,1.7991,4109.7,4109.1,0.26]
[1760366598793,1.7991,4109.7,4109.5,0.43765]
[1760366599101,0.43763,4109.7,4109.6,0.26]
[1760366599301,0.43774,4108.7,4108.4,0.43776]
[1760366599505,1.7991,4108.7,4108.6,0.26]
[1760366600002,1.7991,4109.3,4109.1,0.43769]
[1760366600202,3.2078,4109.6,4109.2,0.26]
[1760366600507,1.7991,4109.9,4109.6,0.43764]
[1760366600806,2.23672,4109.8,4109.7,0.26]
[1760366601008,1.7991,4109.8,4109.7,0.26]
[1760366601805,1.7991,4109.8,4108.9,3.2078]
[1760366601806,1.7991,4109.0,4108.9,3.2078]
[1760366602008,1.7991,4108.6,4108.4,3.64557]
[1760366602201,0.43772,4108.9,4108.5,0.26314328]
[1760366602400,3.2078,4109.8,4108.7,1.1354]
[1760366602605,1.28894907,4111.5,4110.1,0.43759]
[1760366602606,0.43756,4110.4,4110.1,0.43759]
[1760366602803,0.43930452,4110.8,4110.2,0.26]
[1760366602995,1.7991,4110.6,4110.4,0.43755]
[1760366603401,0.00178452,4110.8,4110.7,0.43753]
[1760366603602,0.00178452,4110.8,4110.7,0.69753]
[1760366603806,1.80088452,4110.8,4110.7,0.69753]
[1760366604198,1.7991,4110.5,4109.9,3.2078]
[1760366604398,1.7991,4110.0,4109.9,3.64541]
[1760366604611,1.7991,4110.0,4109.9,3.90541]
[1760366604904,2.16578452,4110.8,4110.6,0.43753]
[1760366605104,3.96488452,4110.8,4110.7,0.26]
[1760366605599,1.67338479,4110.8,4110.7,1.3954]
[1760366606004,3.47248479,4110.8,4110.7,0.43753]
[1760366606205,3.47248479,4110.8,4110.7,0.26]
[1760366606719,1.67586203,4110.8,4110.7,0.26]
[1760366607013,1.67586203,4110.8,4110.7,1.3954]
[1760366607404,1.67586203,4110.8,4110.5,3.2078]
[1760366607405,0.43753,4110.7,4110.5,3.2078]
[1760366607602,1.67586203,4110.8,4109.2,1.09422]
[1760366607603,2.23664,4110.6,4110.0,3.2078]
[1760366607910,1.7991,4110.4,4110.2,0.43758]
[1760366608303,1.7991,4110.4,4110.1,0.26]
[1760366608511,0.00247724,4110.8,4110.0,3.2078]
[1760366608512,0.00247724,4110.8,4110.3,1.1354]
[1760366608709,1.80157724,4110.8,4110.7,0.43753]
[1760366608908,1.80157724,4110.8,4110.7,0.69753]
[1760366608909,0.00247724,4110.8,4110.7,0.69753]
[1760366609706,0.00247724,4110.8,4110.7,1.83293]
[1760366610209,0.00247724,4110.8,4110.7,0.69753]
[1760366610612,1.80157724,4110.8,4110.7,0.26]
[1760366610908,0.00247724,4110.8,4110.7,0.26]
[1760366611104,1.7991,4110.7,4110.6,3.2078]
[1760366611309,0.00247724,4110.8,4110.6,3.4678]
[1760366611612,1.7991,4110.7,4110.6,3.4678]
[1760366612013,0.00247724,4110.8,4110.7,0.43753]
[1760366612215,0.00247724,4110.8,4110.7,1.57293]
[1760366612913,3.2078,4112.1,4111.5,0.43743]
[1760366612914,1.7991,4112.0,4111.5,0.43743]
[1760366613219,0.43742,4111.7,4111.6,0.26]
[1760366613710,1.7991,4111.7,4111.6,0.26]
[1760366613915,1.80134206,4111.7,4111.6,0.2622642]
[1760366614511,1.80134206,4111.7,4111.6,0.0022642]
[1760366614814,0.43746,4111.3,4111.2,0.26]
[1760366615007,0.6947,4111.5,4111.2,0.26]
[1760366615208,0.43745,4111.4,4111.2,0.26]
[1760366615415,1.7991,4111.3,4111.2,0.26]
[1760366615616,1.7991,4111.3,4111.2,0.26212295]
[1760366616112,1.7991,4111.3,4111.2,0.00212295]
[1760366616318,2.23666,4110.4,4110.3,3.2078]
[1760366616615,2.23666,4110.4,4110.3,3.4678]
[1760366617207,1.7991,4110.4,4110.3,3.47042999]
[1760366617409,1.7991,4111.2,4110.5,1.1329]
[1760366617718,3.2078,4111.4,4110.9,1.09377]
[1760366617915,0.6947,4112.0,4111.5,0.43743]
[1760366618118,1.13209,4112.0,4111.6,0.26]
[1760366618618,5.0069,4112.1,4111.6,1.3929]
[1760366618812,1.7991,4112.1,4111.6,1.3929]
[1760366619119,0.4374,4111.9,4111.6,0.26]
[1760366619313,0.6947,4112.5,4111.6,1.3929]
[1760366619508,0.022,4112.8,4111.7,1.09356]
[1760366619815,1.7991,4112.0,4111.8,0.26]
[1760366620014,1.7991,4112.0,4111.9,3.2078]
[1760366620413,0.43744,4111.5,4111.4,3.2078]
[1760366620614,0.43744,4111.5,4110.8,3.2078]
[1760366620615,2.4938,4111.5,4110.8,3.2078]
[1760366620912,0.43755,4110.5,4110.3,3.21042999]
[1760366621113,3.2078,4110.8,4110.3,0.00262999]
[1760366621313,0.43751,4110.9,4110.4,0.26]
[1760366621516,1.7991,4110.8,4110.4,0.26]
[1760366621722,1.7991,4110.8,4110.5,0.43754]
[1760366621913,3.2078,4111.3,4110.4,0.26]
[1760366622113,0.00221953,4112.0,4111.2,1.1329]
[1760366622311,2.23655,4111.5,4111.3,0.26]
[1760366622511,1.7991,4111.4,4111.3,0.26]
[1760366622719,0.69691953,4112.0,4111.3,0.26]
[1760366622910,0.69691953,4112.0,4111.3,0.69746]
[1760366623106,0.43743,4111.6,4111.3,0.69746]
[1760366623310,0.43742,4111.7,4111.3,0.69746]
[1760366623514,0.69691953,4112.0,4111.3,0.69746]
[1760366623515,0.43745,4111.5,4111.3,0.26]
[1760366623711,0.43745,4111.5,4111.2,3.2078]
[1760366623712,1.7991,4111.3,4111.2,3.2078]
[1760366623913,3.2078,4111.4,4110.5,3.2078]
[1760366624112,1.7991,4110.4,4110.3,0.00262999]
[1760366624320,1.7991,4110.4,4110.3,0.26262999]
[1760366624520,0.6947,4111.0,4110.4,0.43755]
[1760366624521,0.4375,4111.0,4110.4,0.43755]
[1760366624716,1.7991,4111.2,4111.0,0.43749]
[1760366624910,3.2078,4111.7,4111.2,1.1329]
[1760366625110,0.4374,4111.9,4111.5,0.43743]
[1760366625312,0.43960953,4112.0,4111.6,1.3929]
[1760366625512,0.43745,4111.5,4111.3,3.2078]
[1760366625815,1.8347,4111.4,4111.3,3.2078]
[1760366626119,0.43744,4111.6,4111.3,3.4678]
[1760366626314,1.8347,4111.5,4111.3,3.4678]
[1760366626518,0.43741,4111.8,4111.4,0.43745]
[1760366626719,0.43960953,4112.0,4111.5,0.43744]
[1760366626920,2.20730953,4112.0,4111.6,0.26]
[1760366627214,2.20730953,4112.0,4111.6,0.69742]
[1760366627421,0.4374,4111.9,4111.6,0.69742]
[1760366627923,1.7677,4111.9,4111.6,0.69743]
[1760366628222,1.7677,4111.9,4111.7,0.43742]
[1760366628520,0.43960953,4112.0,4111.7,0.43742]
[1760366628920,1.7677,4111.4,4110.8,3.2078]
[1760366629120,1.7677,4110.9,4109.9,1.1003]
[1760366629422,1.7677,4110.4,4110.2,0.26]
[1760366630119,0.725,4111.0,4110.4,1.1003]
[1760366630120,1.7677,4111.0,4110.4,1.1003]
[1760366630317,0.43753,4110.7,4110.5,0.43755]
[1760366630518,0.43751,4110.9,4110.6,0.69753]
[1760366630817,3.2078,4111.5,4110.7,1.1003]
[1760366631021,3.2078,4111.5,4110.6,0.26]
[1760366631022,0.43960953,4112.0,4111.7,0.43741]
[1760366631320,2.20515,4111.4,4111.3,0.26]
[1760366631513,0.43745,4111.4,4111.3,0.26]
[1760366631710,0.72721953,4112.0,4111.3,0.26]
[1760366632019,4.25121953,4112.0,4111.4,0.43745]
[1760366632229,0.43742,4111.8,4111.6,0.43743]
[1760366632416,3.52621953,4112.0,4111.8,0.4374]
[1760366633314,3.52621953,4112.0,4111.7,0.26]
[1760366633315,2.2051,4111.9,4111.7,0.26]
[1760366633624,4.25121953,4112.0,4110.9,1.73190061]
[1760366633625,2.20514,4111.5,4111.2,0.43747]
[1760366633823,2.20514,4111.5,4111.3,0.26]
[1760366634123,1.7677,4111.4,4111.3,0.26]
[1760366635922,0.43744,4111.5,4111.3,0.26]
[1760366636220,3.2078,4111.8,4111.6,0.43743]
[1760366636422,3.2078,4111.8,4111.7,1.1003]
[1760366636623,3.52621953,4112.0,4111.8,0.43741]
[1760366636823,3.52621953,4112.0,4111.9,0.26]
[1760366638516,3.52621953,4112.0,4111.9,1.3603]
[1760366638720,3.5149981,4112.0,4111.9,1.3603]
[1760366639522,3.5149981,4112.0,4111.9,0.26]
[1760366639825,3.51732611,4112.0,4111.9,1.3603]
[1760366640215,1.7677,4111.9,4111.6,1.74207498]
[1760366640415,3.51732611,4112.0,4111.5,3.64524]
[1760366640717,3.51732611,4112.0,4111.8,1.1003]
[1760366640919,3.95471611,4112.0,4111.8,0.4374]
[1760366641126,1.7677,4111.8,4111.7,0.26]
[1760366641329,3.51732611,4112.0,4111.7,0.26]
[1760366641535,3.51732611,4112.0,4111.9,1.5377]
[1760366641826,3.51732611,4112.0,4111.9,0.4374]
[1760366642125,0.43741,4111.8,4111.7,0.26]
[1760366642427,2.20511,4111.8,4111.7,0.26]
[1760366642621,5.41291,4111.8,4111.7,0.26]
[1760366642827,2.20511,4111.8,4111.7,0.26]
[1760366643519,2.20511,4111.8,4110.5,1.1003]
[1760366643520,0.43752,4110.8,4110.6,1.74207498]
[1760366643720,0.43756,4110.4,4110.3,0.26262999]
[1760366644026,5.41306,4110.4,4110.3,0.26262999]
[1760366644528,4.9755,4110.9,4110.3,0.26262999]
[1760366644827,1.0936,4111.6,4110.8,0.43751]
[1760366644828,2.4927,4111.5,4110.8,0.43751]
[1760366645024,1.7677,4111.4,4110.8,0.26]
[1760366645223,0.43754,4110.6,4110.5,3.2078]
[1760366645424,2.20526,4110.4,4110.3,0.00262999]
[1760366645616,2.20526,4110.4,4110.3,0.26262999]
[1760366646025,2.20526,4110.4,4110.3,0.00262999]
[1760366646720,0.43769,4109.2,4108.8,3.2078]
[1760366646923,1.7677,4109.1,4108.9,0.69771]
[1760366647326,0.725,4109.5,4108.8,3.2078]
[1760366647624,1.7677,4108.9,4108.8,3.21007328]
[1760366647930,1.7677,4108.9,4108.8,3.47007328]
[1760366648117,1.7677,4108.9,4108.8,0.00227328]
[1760366648322,4.95636364,4108.9,4108.8,0.00227328]
[1760366648620,4.95636364,4108.9,4108.8,0.26227328]
[1760366649025,4.95636364,4108.9,4108.8,0.00227328]
[1760366649630,1.7677,4108.9,4108.8,0.00227328]
[1760366650217,0.72749501,4109.5,4108.8,0.00227328]
[1760366650218,0.72749501,4109.5,4108.8,3.21007328]
[1760366650623,0.00249501,4109.5,4109.4,1.1029]
[1760366650824,3.2078,4110.2,4109.4,2.45707]
[1760366651124,2.38172,4111.1,4110.1,0.43759]
[1760366651125,0.43753,4110.7,4110.1,0.43759]
[1760366651327,0.725,4110.6,4110.2,0.26]
[1760366651526,0.43758,4110.2,4109.8,3.2078]
[1760366651728,0.43766,4109.4,4109.3,3.2078]
[1760366652027,0.44018383,4109.4,4109.3,3.4678]
[1760366652227,2.20788383,4109.4,4109.3,3.4678]
[1760366652432,1.77022383,4109.4,4109.3,3.4678]
[1760366652732,2.49522383,4109.4,4109.3,3.4678]
[1760366652917,2.49522383,4109.4,4108.8,0.00227328]
[1760366653225,2.20542,4108.9,4108.8,0.00227328]
[1760366653827,2.20542,4108.9,4108.8,0.26227328]
[1760366654026,3.2078,4109.0,4108.8,0.26227328]
[1760366654223,0.72752383,4109.4,4108.8,0.26227328]
[1760366654424,0.00252383,4109.4,4109.2,4.3107]
[1760366654621,0.00252383,4109.4,4109.2,3.2078]
[1760366655124,0.00252383,4109.4,4109.3,0.26]
[1760366655326,0.43768,4109.3,4109.2,3.2078]
[1760366655622,1.8425,4109.3,4109.2,3.2078]
[1760366656027,1.8425,4109.3,4109.2,0.26]
[1760366656028,2.28018,4109.3,4109.2,0.26]
[1760366656225,1.8425,4109.3,4108.8,0.00227328]
[1760366656432,1.8425,4108.9,4108.8,0.00227328]
[1760366656624,1.8425,4108.9,4108.8,0.26227328]
[1760366657521,1.8425,4108.9,4108.8,0.00227328]
[1760366657727,5.0503,4108.9,4108.8,0.26227328]
[1760366658135,1.8425,4108.9,4108.8,0.26227328]
[1760366658427,3.94352383,4109.4,4109.3,1.0447]
[1760366658428,0.00252383,4109.4,4109.3,1.0447]
[1760366658626,3.2078,4110.4,4109.4,0.4284]
[1760366658827,0.43757,4110.3,4109.9,0.4376]
[1760366659030,8.13746,4110.4,4110.0,0.259]
[1760366659235,1.8425,4110.3,4109.8,3.2078]
[1760366659425,2.6496,4110.4,4110.1,0.259]
[1760366659627,2.6496,4110.4,4109.8,3.64541]
[1760366659926,0.43767,4109.4,4109.2,3.2078]
[1760366660230,1.8425,4109.3,4109.2,3.2078]
[1760366660429,1.8425,4109.3,4109.2,3.4668]
[1760366660629,1.8425,4109.3,4109.2,0.259]
[1760366661128,0.43772,4108.9,4108.8,0.00227328]
[1760366661332,2.28022,4108.9,4108.8,0.00227328]
[1760366661532,2.2803,4108.1,4108.0,3.2078]
[1760366661730,0.7332,4108.8,4108.0,3.4668]
[1760366661929,0.4378,4108.2,4108.1,0.259]
[1760366662230,2.2803,4108.2,4107.8,0.43783]
[1760366662430,1.8425,4107.8,4107.6,3.2078]
[1760366662636,1.8425,4107.7,4107.6,3.2078]
[1760366662838,1.8425,4107.7,4107.6,0.00290598]
[1760366663333,1.8425,4107.7,4107.6,0.26190598]
[1760366665029,1.8425,4108.4,4107.6,0.26190598]
[1760366665337,2.28032,4108.0,4107.6,0.26190598]
[1760366665535,0.43782,4108.0,4107.6,0.26190598]
[1760366665835,1.8425,4108.1,4107.7,0.43784]
[1760366666036,0.43781,4108.1,4107.6,0.26190598]
[1760366666240,1.8425,4107.9,4107.6,0.26190598]
[1760366666534,2.28033,4107.9,4107.6,0.26190598]
[1760366666839,1.8425,4107.7,4107.6,0.00290598]
[1760366667131,1.8425,4107.7,4107.6,0.26190598]
[1760366668938,0.43783,4107.9,4107.6,0.26190598]
[1760366669129,1.8425,4107.8,4107.7,0.259]
[1760366669637,2.28035,4107.7,4107.6,0.00290598]
[1760366669834,3.2078,4108.1,4107.6,0.26190598]
[1760366670141,2.28034,4107.8,4107.6,0.26190598]
[1760366670331,0.43784,4107.8,4107.6,0.26190598]
[1760366670636,1.8425,4107.7,4107.6,0.26190598]